Cogmind - Beta 16 @@@ ROGUE MODE // 2025.10.28 @ 14:06:06 Player: nirgal Result: Destroyed by G-47 Trooper with Particle Gun Performance ------------- Evolutions (2) 1000 Regions Visited (3) 600 Robots Destroyed (54) 270 Value Destroyed (1339) 1339 Prototype IDs (0) 0 Alien Tech Used (0) 0 Bonus (0) 0 TOTAL SCORE: 3209 Bonus ------- None Cogmind --------- Core Integrity 0/550 Matter 300/300 Energy 100/100 System Corruption 0% Temperature Cool (9) Movement Walking (470) Ox5 Location -8/Materials Parts ------- > --- POWER (1) -------- (None) > --- PROPULSION (2) --- Carbon-fiber Leg > --- UTILITY (4) ------ Huge Storage Unit Visual Processing Unit Advanced Targeting Computer Advanced Targeting Computer > --- WEAPON (4) ------- Katana > --- INVENTORY (25) --- Light Ion Engine Light Ion Engine High-capacity Storage Unit High-capacity Matter Pod (200) Advanced Visual Processing Unit ECM Suite Improved Weapon Shielding Light Armor Plating Hacking Suite Katana Peak State ------------ > --- POWER ------------ Light Ion Engine > --- PROPULSION ------- Titanium Leg Titanium Leg > --- UTILITY ---------- Huge Storage Unit Visual Processing Unit Advanced Targeting Computer Advanced Targeting Computer > --- WEAPON ----------- Heavy Assault Rifle High-powered Shotgun Katana Katana > --- INVENTORY -------- Light Ion Engine Aluminum Leg Carbon-fiber Leg High-capacity Storage Unit High-capacity Matter Pod Advanced Visual Processing Unit ECM Suite Improved Weapon Shielding Light Armor Plating Hacking Suite Katana [Rating: 29] Favorites ----------- Power Light Ion Engine Engine Light Ion Engine Propulsion Wheel Leg Aluminum Leg Wheel Wheel Utility Advanced Targeting Computer Device Seismic Detector Storage Huge Storage Unit Processor Advanced Targeting Computer Weapon Minigun Energy Gun Medium Laser Ballistic Gun Minigun Ballistic Cannon Light Cannon Launcher Grenade Launcher Slashing Weapon Katana Build | -11 -10 -9 -8 ------- Run | Yrd Mat Mat Mat Slots Evolved 4 | . . 2 2 Power . | . . . . Propulsion . | . . . . Utility 2 | . . 1 1 Weapon 2 | . . 1 1 Parts Attached 34 | 7 1 7 19 Power 5 | 1 . 1 3 Engine 5 | 1 . 1 3 Core . | . . . . Reactor . | . . . . Propulsion 7 | 2 . . 5 Treads . | . . . . Leg 5 | . . . 5 Wheel 2 | 2 . . . Hover . | . . . . Flight . | . . . . Utility 9 | 2 1 3 3 Device 1 | 1 . . . Storage 4 | 1 1 1 1 Processor 4 | . . 2 2 Hackware . | . . . . Protection . | . . . . Artifact . | . . . . Weapon 13 | 2 . 3 8 Energy Gun 1 | 1 . . . Energy Cannon . | . . . . Ballistic Gun 8 | 1 . 3 4 Ballistic Cannon 1 | . . . 1 Launcher 1 | . . . 1 Special Weapon . | . . . . Impact Weapon . | . . . . Slashing Weapon 2 | . . . 2 Piercing Weapon . | . . . . Special Melee Weapon . | . . . . Unidentified Prototypes . | . . . . Parts Lost 21 | . . . 21 Power 4 | . . . 4 Propulsion 6 | . . . 6 Utility 1 | . . . 1 Weapon 10 | . . . 10 Highest Loss Streak 11 | . . . 11 To Critical Strikes . | . . . . Average Backups 7 | 3 7 10 7 Power . | . 1 1 . Propulsion 1 | 2 4 2 . Utility 3 | . . 2 5 Weapon 1 | . 1 4 . Tool/Special . | . . . . Unused Backups 11 | . . 3 8 Power 2 | . . 1 1 Propulsion 2 | . . 2 . Utility 6 | . . . 6 Weapon 1 | . . . 1 Tool/Special . | . . . . Average Slot Usage (%) 81 | . 100 99 71 Engine 7 | . 14 11 4 Leg 6 | . . . 9 Wheel 10 | . 28 22 2 Device 5 | . 14 11 1 Storage 10 | . 14 11 9 Processor 15 | . . 11 20 Energy Gun 2 | . 14 . . Ballistic Gun 19 | . 14 31 17 Ballistic Cannon 1 | . . . 1 Slashing Weapon 2 | . . . 4 Peak Build Rating 29 | 7 8 18 29 Average Rating 15 | 5 7 17 17 On Entrance 8 | . 7 8 18 Avg Prop Armor Cover (%) 13 | 17 13 . . Naked Turns . | . . . . Heaviest Build 98 | 12 17 55 98 Greatest Support 34 | 20 20 20 34 Greatest Overweight (x) 29 | 3 3 2 29 Average Overweight (x) 2 | . 1 1 4 Largest Inventory Capacity 25 | 8 10 20 25 Average Capacity 19 | 7 8 14 24 Most Carried 13 | 6 10 11 13 Average Carried 7 | 4 7 10 7 Final Capacity 25 | 8 10 20 25 Final Carried 11 | 6 10 11 10 Class Distribution -------------------- 71% | Mutant 28% | Gunner Dominant Class ---------------- Mutant | -10/Materials Gunner | -9/Materials Mutant | -8/Materials Resources | -11 -10 -9 -8 ----------- Run | Yrd Mat Mat Mat Matter Collected 1540 | 223 19 527 771 Remotely . | . . . . Salvage Created 1533 | 38 19 696 780 Parts 112 | 6 4 59 43 Haulers Intercepted . | . . . . Recyclers Shooed . | . . . . Parts Field Recycled . | . . . . Retrieved Matter . | . . . . Parts Self-Destructed . | . . . . Prevented . | . . . . Parts Restored . | . . . . Kills | -11 -10 -9 -8 ------- Run | Yrd Mat Mat Mat Combat Hostiles Destroyed 42 | . . 23 19 Melee 8 | . . . 8 Guns 29 | . . 23 6 Cannons 5 | . . . 5 Classes Destroyed 11 | 1 1 4 5 Worker 4 | . . . 4 Builder 2 | . . . 2 Tunneler 2 | 2 . . . Recycler 1 | . . . 1 Operator 1 | . . 1 . Watcher 2 | . 1 . 1 Swarmer 19 | . . 13 6 Grunt 11 | . . 4 7 Sentry 9 | . . 6 3 Specialist 2 | . . . 2 Heavy 1 | . . . 1 Best Kill Streak 13 | 1 1 13 5 Combat Bots Only 12 | . . 12 5 Max Kills in Single Turn 2 | 1 1 2 2 Gunslinging 1 | . . 1 . Exploded . | . . . . Melee 1 | . . . 1 Uniques/NPCs Destroyed . | . . . . Combat | -11 -10 -9 -8 -------- Run | Yrd Mat Mat Mat Hostile Shots Fired 339 | . . 68 271 Missed 111 | . . 21 90 Hits 228 | . . 47 181 Projectile 228 | . . 47 181 Critical Strikes 7 | . . . 7 Damage Taken 2895 | . . 442 2453 Core 636 | . . 80 556 Absorbed by Shields . | . . . . Core Remaining (%) 93 | 100 100 80 . Volleys Fired 99 | 4 3 35 57 Largest 4 | 2 2 3 4 Hottest 100 | 70 70 75 100 Shots Fired 218 | 8 6 105 99 Gun 175 | 8 6 105 56 Cannon 38 | . . . 38 Launcher 5 | . . . 5 Special . | . . . . Kinetic 206 | 4 3 105 94 Thermal 7 | 4 3 . . Explosive 5 | . . . 5 Electromagnetic . | . . . . Robot Hit Streak 22 | 2 5 8 22 Robot Miss Streak 4 | 2 1 4 3 Penetration Max . | . . . . Secondary Targets 8 | . . 8 . Max Gunslinging Chain 2 | . . 2 . Shots Hit Robots 151 | 3 4 58 86 Core Hits 77 | 2 2 29 44 Critical Kills . | . . . . Critical Parts Destroyed . | . . . . Critical Strikes 2 | . . . 2 Blast 2 | . . . 2 Melee Attacks 29 | . . . 29 Impact . | . . . . Slashing 29 | . . . 29 Piercing . | . . . . Sneak Attacks . | . . . . Combat Hostiles . | . . . . Follow-up Attacks 1 | . . . 1 Damage Inflicted 2853 | 33 40 993 1787 Guns 1741 | 33 40 993 675 Cannons 466 | . . . 466 Explosions 141 | . . . 141 Melee 505 | . . . 505 Ramming . | . . . . Kinetic 2158 | 8 16 993 1141 Thermal 49 | 25 24 . . Explosive 141 | . . . 141 Electromagnetic . | . . . . Impact . | . . . . Slashing 505 | . . . 505 Piercing . | . . . . Highest Corruption 2 | . 2 . . Average Corruption 2 | . 2 . . Corruption Purged . | . . . . Corruption Blocked . | . . . . Effects 4 | . 4 . . Message Errors 1 | . 1 . . Matter Fused 3 | . 3 . . Overload Shots . | . . . . Overflow Damage 83 | . . . 83 Projectiles . | . . . . Explosions 31 | . . . 31 Melee 52 | . . . 52 Knockbacks 10 | . . . 10 Impact . | . . . . Kinetic 9 | . . . 9 Secondary 1 | . . . 1 Self-Inflicted Damage 44 | . . . 44 Shots 2 | . . . 2 Rammed . | . . . . Targets Rammed . | . . . . Kicked . | . . . . Crushed . | . . . . Highest Temperature 175 | 50 30 175 60 Average Temperature 42 | 24 18 51 27 Received Heat Transfer 711 | . . 54 657 Siege Activations . | . . . . Martial Activations . | . . . . Shielding Activations . | . . . . Robots Disrupted . | . . . . Combat Hostiles . | . . . . Robots Corrupted . | . . . . Combat Hostiles . | . . . . Parts Fried . | . . . . Impact Corruptions . | . . . . Robots Melted . | . . . . Combat Hostiles . | . . . . Parts Melted . | . . . . Heat Transferred 148 | 74 74 . . Parts Sabotaged . | . . . . Parts Stolen . | . . . . Parts Stripped . | . . . . Power Chain Reactions . | . . . . Alert | -11 -10 -9 -8 ------- Run | Yrd Mat Mat Mat Maximum Alert Level 1 | . . 1 . Low Security (%) 84 | 100 100 25 100 Level 1 15 | . . 74 . Level 2 . | . . . . Level 3 . | . . . . Level 4 . | . . . . Level 5 . | . . . . High Security . | . . . . Max Security . | . . . . Peak Influence 379 | 5 30 379 156 Initial 156 | . 3 . 156 Average 74 | . 3 207 50 Influence Increases 1236 | 10 41 603 582 Destroy 0b10 Robot/C 840 | . . 460 380 Destroy 0b10 Robot/NC 60 | 10 5 5 40 Destroy Leader 224 | . 2 120 102 Successful Hack 4 | . 4 . . Disable Machine 15 | . . . 15 Destroy Structure 33 | . . 3 30 Lose Combat Pursuer 60 | . 30 15 15 Influence Decreases 1127 | 5 46 232 844 Entered New Map 217 | . 2 . 215 Time Decay 700 | 5 44 232 419 Lost Part 210 | . . . 210 Squads Dispatched 7 | . 1 2 4 Investigation 2 | . . 1 1 Extermination . | . . . . Reinforcement 5 | . 1 1 3 Assault . | . . . . Garrison . | . . . . Intercept . | . . . . Searches Triggered . | . . . . Construction Impeded 1 | . . . 1 Haulers Reinforced . | . . . . Active Scanning Responses . | . . . . Cargo Convoy Interrupts . | . . . . Stealth | -11 -10 -9 -8 --------- Run | Yrd Mat Mat Mat Distress Signals 4 | . . 1 3 Communications Jammed . | . . . . Distress Signals . | . . . . Times Spotted 69 | . 3 29 37 Peak Tracking Total 10 | . 3 10 7 Tactical Retreats 3 | . 1 1 1 Traps | -11 -10 -9 -8 ------- Run | Yrd Mat Mat Mat Traps Triggered 3 | . 1 1 1 Indirectly . | . . . . Trap Hack Attempts . | . . . . Triggered . | . . . . Disarmed . | . . . . Reprogrammed . | . . . . Reused . | . . . . Traps Extracted . | . . . . Installed . | . . . . Triggered . | . . . . Machines | -11 -10 -9 -8 ---------- Run | Yrd Mat Mat Mat Machines Disabled 1 | . . . 1 Max in Single Turn 1 | . . . 1 Machines Repaired . | . . . . Machines Dismantled . | . . . . Machines Sabotaged . | . . . . Overloaded Fab Kills . | . . . . Hacking | -11 -10 -9 -8 --------- Run | Yrd Mat Mat Mat Machines Accessed 5 | . 2 2 1 Terminals 2 | . 2 . . Fabricators . | . . . . Repair Stations . | . . . . Recycling Units 2 | . . 1 1 Scanalyzers 1 | . . 1 . Garrison Access . | . . . . Total Hacks 13 | . 4 7 2 Successful 9 | . 1 6 2 Failed 4 | . 3 1 . Catastrophic . | . . . . Database Lockouts . | . . . . Manual . | . . . . Terminals 4 | . 4 . . Fabricators . | . . . . Repair Stations . | . . . . Recycling Units 4 | . . 2 2 Scanalyzers 5 | . . 5 . Garrison Access . | . . . . Terminal Hacks 1 | . 1 . . Locate Traps 1 | . 1 . . Fabricator Hacks . | . . . . Repair Station Hacks . | . . . . Recycling Unit Hacks 4 | . . 2 2 Report Inventory 2 | . . 1 1 Retrieve Matter 1 | . . 1 . Retrieve Components 1 | . . . 1 Scanalyzer 4 | . . 4 . Insert Component 1 | . . 1 . Analyze 1 | . . 1 . Retrieve Study 2 | . . 2 . Garrison Access Hacks . | . . . . Unauthorized Hacks . | . . . . Terminals . | . . . . Fabricators . | . . . . Repair Stations . | . . . . Recycling Units . | . . . . Scanalyzers . | . . . . Garrison Access . | . . . . Data Cores Recovered . | . . . . Used . | . . . . Hacking Detections 2 | . 1 1 . Full Trace Events 1 | . 1 . . Feedback Events . | . . . . Feedback Blocked . | . . . . Robot Schematics Acquired . | . . . . Robots Built . | . . . . Authchips . | . . . . Time . | . . . . Total Robot Build Rating . | . . . . Part Schematics Acquired 1 | . . 1 . Parts Built . | . . . . Authchips . | . . . . Time . | . . . . Total Part Build Rating . | . . . . Part Studies Acquired . | . . . . Parts Repaired . | . . . . Time . | . . . . Parts Recycled . | . . . . Recycled Matter . | . . . . Retrieved Matter . | . . . . Retrieved Components 3 | . . . 3 Parts Scanalyzed 1 | . . 1 . Part Schematics Acquired 1 | . . 1 . Parts Damaged . | . . . . Bothacking | -11 -10 -9 -8 ------------ Run | Yrd Mat Mat Mat Used RIF Installer . | . . . . Robots Hacked . | . . . . Non-combat . | . . . . Combat . | . . . . Robot Hacks Applied . | . . . . Relay Couplers Released . | . . . . Fabnet Peak Effective % . | . . . . Robots Rewired . | . . . . Allies Hacked . | . . . . Hacks Repelled . | . . . . Allies | -11 -10 -9 -8 -------- Run | Yrd Mat Mat Mat Total Allies . | . . . . Largest Group . | . . . . Highest-Rated Group . | . . . . Highest-Rated Ally . | . . . . Total Orders . | . . . . Ally Attacks . | . . . . Total Damage . | . . . . Kills . | . . . . Allies Corrupted . | . . . . Allies Melted . | . . . . Intel | -11 -10 -9 -8 ------- Run | Yrd Mat Mat Mat Active Infowar (turns) 1558 | 32 377 570 579 Optics 368 | . . . 368 Seismic 1190 | 32 377 570 211 Robot Analysis Total . | . . . . Derelict Logs Recovered . | . . . . Drone Launches . | . . . . Drone Recoveries . | . . . . Exploration | -11 -10 -9 -8 ------------- Run | Yrd Mat Mat Mat Turns Passed 2695 | 99 377 570 1649 Spaces Moved 1162 | 74 286 427 375 Core 137 | 29 101 . 7 Treads . | . . . . Legs 243 | . . . 243 Wheels 782 | 45 185 427 125 Hover . | . . . . Flight . | . . . . Fastest Speed 50 | 50 80 80 110 Average Speed 190 | 97 122 101 363 Slowest Speed 1500 | 200 200 110 1500 Overloaded Moves . | . . . . Propulsion Burnouts . | . . . . Robots Hopped . | . . . . Potential Cave-ins . | . . . . Cave-ins Triggered . | . . . . Exploration Rate (%) 34 | 4 53 42 37 Regions Visited 3 Branch Regions . Pre-discovered Areas . | . . . . Known Exits Taken . | . . . . Unknown Exits Taken 3 | 1 1 1 . Scrap Searched . | . . . . Spaces Dug . | . . . . Terrain Destroyed 32 | . . . 32 Melee . | . . . . Projectile . | . . . . AOE 32 | . . . 32 Terrain Rammed . | . . . . Walls Destroyed . | . . . . Machines Disabled . | . . . . Actions | -11 -10 -9 -8 --------- Run | Yrd Mat Mat Mat Total 1436 | 90 307 507 532 Wait 80 | . 13 26 41 Move 1159 | 73 285 426 375 Hop . | . . . . Pick Up 24 | 6 4 5 9 Fast Attach 19 | 7 . 3 9 Attach 14 | . . 2 12 Detach 4 | . . 3 1 Swap 5 | . 1 2 2 Drop 6 | . 1 5 . Fire 99 | 4 3 35 57 Melee 26 | . . . 26 Ram . | . . . . Kick . | . . . . Crush . | . . . . Escape Stasis . | . . . . Rewire . | . . . . Trap . | . . . . Miscellaneous . | . . . . Route ------- -11/Scrapyard -10/Materials (discovered 2 exits: *Mat / [*Min]) -9/Materials -8/Materials History --------- Turn | Location | Event 14 | -11/Scrapyard | Discovered new exit (range 15) 100 | -11/Scrapyard | Entered Materials 179 | -10/Materials | Discovered new exit (range 16) 310 | -10/Materials | Build established: Mutant 422 | -10/Materials | Discovered new exit (range 14) 477 | -10/Materials | Entered another Materials area 477 | -9/Materials | Evolved 2 slots: Utility x1, Weapon x1 659 | -9/Materials | Destroyed 12 combat bots 799 | -9/Materials | Build established: Gunner 988 | -9/Materials | Discovered new exit (range 16) 1047 | -9/Materials | Entered another Materials area 1047 | -8/Materials | Evolved 2 slots: Utility x1, Weapon x1 1377 | -8/Materials | Lost 11 parts (3p2n1u5w) 1400 | -8/Materials | Core integrity fell below 50% 1536 | -8/Materials | Build established: Mutant 2666 | -8/Materials | Core integrity fell below 20% 2696 | -8/Materials | Destroyed by G-47 Trooper with Particle Gun Last Messages --------------- 02659_ Katana destroyed. 02661_ G-50 Soldier destroyed. 02662_ Acquired 6 matter. 02662_ Titanium Leg destroyed. 02663_ S-10 Pest destroyed. 02664_ K-01 Serf collects debris. 02667_ Acquired 10 matter. 02676_ Destroyed Flight Unit. 02676_ S-10 Pest destroyed. 02676_ Aluminum Leg destroyed. 02677_ K-01 Serf collects debris. 02679_ Destroyed Flight Unit. 02679_ S-10 Pest destroyed. 02680_ K-01 Serf collects debris. 02682_ Critical hit (Burn: +37). 02684_ K-01 Serf collects debris. 02688_ Deuterium Engine destroyed. 02692_ K-01 Serf collects debris. 02692_ Critical hit (Burn: +37). 02695_ K-01 Serf collects debris. Map ----- +----------------------------------------------------+ | | | | | | | | | | | | | | | | | | | ?????????????????????????????????????????????????? | | ?????????????????????????????????????????????????? | | ?????????????????????????????????????????????????? | | ?????????????????????????????????????????????????? | | ?????????????????????????????????????????????????? | | ?????????????????????????????????????????????????? | | ????????#######+#????????????????????????????????? | | ???????? ???????????????????????????????? | | ??????? ^ #???##########?????????????????? | | ??????? ??+ #?????????????????? | | ??????? ??# #?????????????????? | | ?????? ?# ! #?????????????????? | | ?????? ?# #?????????????????? | | ?????# # #?????????????????? | | ?????# # k #?????????????????? | | ?????# +% g #?????????????????? | | ?????# #%[@ #?????????????????? | | ????????# """"" #%=[ s #??########???????? | | ????????# """"" #+##+##+##??# T #???????? | | ?????????????? """"" %= #???# #???????? | | ???????????????""""" #???# """ #???????? | | ????????????????"""" ##### """ #???????? | | ????????????????"""" % + """ #???????? | | ????????????????"""" ######## #???????? | | ?????????????? #??????####+###???????? | | ???????????? ########## #####+#??? | | ???????????? " | | ???????????? ########## ##### | | ????????????### #T### #????????## ##????????? | | ??????????????##+###??#+##+#?????????# #?????????? | | ??????????????????????? ?? ?######### ##########? | | ??????????????????????? ??= + #? | | ???????????????????????"?? # ########+##### #? | | ???????????????????????"??? ?????# # #? | | ????????????????????????????????## == #+##+## | | ????????????????????????????????# == [ # | | ????????????????????????????????## == #""" | | ?????????????????????????????????###########""" | | ???????????????????????????????????????????#""" | | ???????????????????????????????????????????# | | ???????????????????????????????????????????#""" | +----------------------------------------------------+ Best States ------------- Heat Dissipation 31 Energy Generation 14 Energy Capacity 275 Matter Stores 300 Matter Capacity 300 Sight Range 18 Terrain Scan Density 10 Evasion (%) 50 Targeting Accuracy 16 Item Schematics ----------------- Minigun | -9/Materials | Scanalyzed Robot Schematics ------------------ None Fabricated ------------ Nothing Repaired ---------- Nothing Studied --------- None Alien Tech Used ----------------- None Achievements -------------- Heavy Suspicion Challenges ------------ None Game ------ Seed ReactivePersonalSpoofer Manual? 0 Play Time 00:27:52 Cumulative 16.0 hours Start 2025.10.28 @ 13:39:05 End 2025.10.28 @ 14:06:06 Sessions 1 Manual Loads 0 Difficulty Rogue Special Mode None Game No. 41 Rogue 41 Adventurer 0 Explorer 0 Win Type - Total 0 Types 0/0/0/0/0/0/0/0/0/0 Lore% 2 Gallery% 17 Achievement% 13 Wizard Run 0 Options --------- Layout 0 ASCII 0 Keyboard 1 Movement Vi Keybinds 0 Fullscreen 1 Font 24/Smallcaps Map View 113x50 Zoom Use 0% Tactical HUD 1 Map Filters NONE Filters NONE Steam 1 RUN: 761cf482-1704-4aff-a81c-73182701ef05